fUSD/lending_fUSD_20240126
["ID","MTS","AMOUNT","RATE_DAILY","PERIOD"]
[312822710,1706298646398,-585.44476621,0.00037899,4]
[312822711,1706298646562,-104.0165749,0.00037899,4]
[312822712,1706298646571,-328.01961807,0.00042,3]
[312822730,1706298743339,412.41609805,0.000285,120]
[312822731,1706298769958,729.71333079,0.00021614,2]
[312822732,1706298789178,9085.63784054,0.00021846,7]
[312822733,1706298813725,184.45,0.0002499,120]
[312822736,1706298888510,180.33530759,0.000236,7]
[312822738,1706299133928,4397.99930971,0.00023158,7]
[312822739,1706299279445,3518.39944776,0.00023158,7]
[312822740,1706299364442,180.73,0.00020188,2]
[312822758,1706299816461,171.69,0.0001959,2]
[312822776,1706299831535,-1000.0,0.00021666,2]
[312822777,1706299831545,-155.0,0.00021666,2]
[312822778,1706299831554,-20.3,0.00021666,2]
[312822779,1706299831565,-210.60329656,0.00021666,2]
[312822780,1706299831575,-154.7488095,0.00021667,2]
[312822781,1706299831593,-3040.54578303,0.00021667,2]
[312822782,1706299831603,-4356.58302865,0.00021667,2]
[312822783,1706299831613,-200.0,0.0002167,2]
[312822784,1706299831622,-150.0,0.00021711,2]
[312822785,1706299831631,-2000.0,0.00021713,2]
[312822786,1706299831640,-159.11,0.00021726,2]
[312822787,1706299831649,-2971.314,0.00021821,2]
[312822788,1706299831660,-250.0,0.00021842,2]
[312822789,1706299831670,-2018.33,0.00021846,2]
[312822790,1706299831680,-404.62,0.00021849,2]
[312822791,1706299831689,-171.69,0.00021854,2]
[312822792,1706299831698,-1946.62,0.00021918,2]
[312822793,1706299831708,-10000.0,0.00021918,2]
[312822795,1706299831718,-232.85,0.00021918,2]
[312822797,1706299831727,-298.17399244,0.00021924,2]
[312822799,1706299831737,-1000.0,0.00021971,2]
[312822801,1706299831746,-214.65,0.00022067,2]
[312822803,1706299831756,-250.0,0.00022067,2]
[312822805,1706299831765,-1224.46,0.00022067,2]
[312822807,1706299831775,-499.99,0.00022067,2]
[312822809,1706299831784,-159.11,0.00022292,2]
[312822811,1706299831793,-740.69095266,0.000224,2]
[312822814,1706299831805,-964.01083328,0.000224,2]
[312822816,1706299831814,-44.26071947,0.00022424,2]
[312822818,1706299831825,-1198.89,0.00022424,2]
[312822820,1706299831836,-18527.66928053,0.00022424,2]
[312822822,1706299831846,-6147.39256207,0.0002275,2]
[312822824,1706299831856,-483.00898298,0.00022769,2]
[312822826,1706299831865,-557.68919725,0.00022798,2]
[312822828,1706299831874,-881.7444,0.000228,2]
[312822830,1706299831884,-2428.9975,0.000228,2]
[312822832,1706299831893,-7118.4551,0.000228,2]
[312822835,1706299831903,-320.3401,0.000228,2]
[312822837,1706299831912,-159.11,0.00022858,2]
[312822838,1706299831921,-204.70499096,0.00022898,2]
[312822840,1706299831931,-5380.01929118,0.00022898,2]
[312822884,1706299837620,-340225.64410882,0.00022898,2]
[312822885,1706299837629,-251.5519,0.00022898,2]
[312822886,1706299837638,-207.73797985,0.00022899,2]
[312822887,1706299837648,-1000.0,0.000229,2]
[312822888,1706299837657,-152.72759036,0.000229,2]
[312822889,1706299837666,-2738.85501989,0.000229,2]
[312822890,1706299837675,-1239.1471,0.000229,2]
[312822891,1706299837684,-1383.59308014,0.000229,2]
[312822892,1706299837693,-863.47004618,0.000229,2]
[312822893,1706299837702,-218.90366879,0.000229,2]
[312822894,1706299837711,-183.05582555,0.000229,2]
[312822895,1706299837721,-3548.62138959,0.000229,2]
[312822896,1706299837730,-2116.7340337,0.000229,2]
[312822897,1706299837739,-863.47004612,0.00022902,2]
[312822898,1706299837749,-863.47004612,0.00022904,2]
[312822899,1706299837764,-863.47004612,0.00022905,2]
[312822900,1706299837778,-863.47004612,0.00022907,2]
[312822901,1706299837788,-863.47004612,0.00022909,2]
[312822902,1706299837798,-863.47004612,0.00022911,2]
[312822903,1706299837807,-863.47004612,0.00022913,2]
[312822904,1706299837817,-863.47004612,0.00022914,2]
[312822905,1706299837826,-863.47004612,0.00022916,2]
[312822906,1706299837835,-863.47004612,0.00022918,2]
[312822907,1706299837844,-863.47004612,0.0002292,2]
[312822908,1706299837853,-215.397955,0.00022976,2]
[312822909,1706299837863,-760.33892735,0.0002299,2]
[312822910,1706299837872,-760.33892735,0.0002299,2]
[312822911,1706299837882,-760.33892735,0.0002299,2]
[312822912,1706299837891,-164.28,0.00022993,2]
[312822913,1706299837900,-172.02741418,0.00022997,2]
[312822914,1706299837911,-156.00443668,0.00022997,2]
[312822915,1706299837921,-3865.7058748,0.00022997,2]
[312822916,1706299837930,-48141.72808888,0.00022998,2]
[312822917,1706299837938,-3949.62909764,0.00022998,2]
[312822918,1706299837948,-2781.52303549,0.00022998,2]
[312822919,1706299837957,-317.43646122,0.00022998,2]
[312822920,1706299837966,-229.21672835,0.00022999,2]
[312822922,1706299837975,-215.77509695,0.00022999,2]
[312822923,1706299837984,-157.52352289,0.00022999,2]
[312822924,1706299837993,-190.90927065,0.00022999,2]
[312822925,1706299838002,-1518.11308694,0.00022999,2]
[312822926,1706299838012,-427.02443553,0.00022999,2]
[312822927,1706299838022,-180.60041889,0.00022999,2]
[312822929,1706299838032,-181.1682547,0.00022999,2]
[312822930,1706299838042,-155.0,0.00022999,2]
[312822931,1706299838054,-1859.24759143,0.00022999,2]
[312822932,1706299838067,-26950.3604192,0.00022999,2]
[312822933,1706299838077,-500.0,0.00022999,2]
[312822934,1706299838086,-265.01761317,0.00022999,2]
[312822936,1706299838095,-272.29983648,0.00022999,2]
[312822938,1706299838104,-294.21577062,0.00022999,2]
[312822939,1706299838113,-330.77672652,0.00022999,2]
[312822940,1706299838122,-500.0,0.00022999,2]
[312822941,1706299838132,-500.0,0.00022999,2]
[312822942,1706299838141,-500.0,0.00022999,2]
[312822943,1706299838151,-500.0,0.00022999,2]
[312822944,1706299838162,-1361948.6970687,0.00023,2]
[312822945,1706299838181,-567.36226103,0.00023,2]
[312822946,1706299838192,-127546.40916114,0.00023,2]
[312822947,1706299838203,-591.5,0.00023,2]
[312822948,1706299838214,-1214.37358567,0.00023,2]
[312822949,1706299838227,-2331.12457311,0.00023,2]
[312822950,1706299838238,-1144.6153312,0.00023,2]
[312822951,1706299838250,-720.10049987,0.00023,2]
[312822952,1706299838261,-879.47774667,0.00023,2]
[312822953,1706299838276,-645.5925653,0.00023,2]
[312822954,1706299838290,-27993.95758105,0.00023,2]
[312822955,1706299838302,-1330.54168592,0.00023,2]
[312822956,1706299838314,-834.87280297,0.00023,2]
[312822957,1706299838325,-278.59433354,0.00023,2]
[312822958,1706299838337,-4612.53602164,0.00023,2]
[312822959,1706299838348,-3458.12156716,0.00023,2]
[312822960,1706299838369,-74498.79901232,0.00023,2]
[312822961,1706299838381,-384.9054171,0.00023,2]
[312822962,1706299838392,-3955.38971789,0.00023,2]
[312822963,1706299838404,-5860.77595222,0.00023,2]
[312822964,1706299838417,-417.75203429,0.00023,2]
[312822965,1706299838428,-508.620414,0.00023,2]
[312822966,1706299838439,-77642.92575738,0.00023,2]
[312822967,1706299838463,-15790.29117174,0.00023,2]
[312822968,1706299838475,-49960.1469397,0.00023,2]
[312822969,1706299838486,-59296.36079422,0.00023,2]
[312822970,1706299838498,-26375.06323587,0.00023,2]
[312822971,1706299838507,-175092.16992936,0.00023,2]
[312822972,1706299838518,-18236.50337328,0.00023,2]
[312822973,1706299838530,-282.25751733,0.00023,2]
[312822984,1706299839901,-863.47004612,0.00022921,2]
[312822985,1706299839912,-10655.95267771,0.00023,2]
[312822986,1706299839923,-143645.92693187,0.00023,2]
[312822987,1706299839937,-782.87019314,0.00023,2]
[312822988,1706299839950,-392.74503949,0.00023,2]
[312822989,1706299839970,-29120.97673779,0.00023,2]
[312822990,1706299839983,-3166.39403403,0.00023,2]
[312822991,1706299839997,-13954.95,0.00023,2]
[312823011,1706299842473,-230.5583486,0.00022999,2]
[312823013,1706299842482,-361676.50811596,0.00023,2]
[312823015,1706299842494,-633353.95721562,0.00023,2]
[312823017,1706299842505,-422.57335328,0.00023,2]
[312823020,1706299842521,-332.28537817,0.00023,2]
[312823023,1706299842537,-5425.33852606,0.00023,2]
[312823025,1706299842549,-5608.36949611,0.00023,2]
[312823027,1706299842561,-8000.0,0.00023,2]
[312823030,1706299842573,-763.60893783,0.00023,2]
[312823032,1706299842584,-3077.6682786,0.00023,2]
[312823035,1706299842599,-2408.043014,0.00023,2]
[312823037,1706299842610,-975.445154,0.00023,2]
[312823043,1706299842657,-1808.33679699,0.00023,2]
[312823045,1706299842670,-712.29205035,0.00023,2]
[312823047,1706299842681,-508.76,0.00023,2]
[312823053,1706299842721,-389.7985259,0.00023,2]
[312823055,1706299842732,-896.84790023,0.00023,2]
[312823057,1706299842743,-26665.99354136,0.00023,2]
[312823059,1706299842755,-977.2776959,0.00023,2]
[312823061,1706299842781,-1997.45,0.00023,2]
[312823063,1706299842793,-1634.92347253,0.00023,2]
[312823064,1706299842804,-539.30699596,0.00023,2]
[312823065,1706299842816,-601.95142234,0.00023,2]
[312823066,1706299842828,-4359.87819354,0.00023,2]
[312823067,1706299842840,-2377.70940514,0.00023,2]
[312823068,1706299842852,-488.16540463,0.00023,2]
[312823069,1706299842863,-632.4,0.00023,2]
[312823070,1706299842877,-2560.00000001,0.00023,2]
[312823072,1706299842889,-533.35245504,0.00023,2]
[312823073,1706299842901,-1036.368,0.00023,2]
[312823074,1706299842918,-944.4,0.00023,2]
[312823075,1706299842929,-508.58444147,0.00023,2]
[312823076,1706299842940,-4270.22564292,0.00023,2]
[312823077,1706299842952,-291.33054083,0.00023,2]
[312823078,1706299842963,-615.575,0.00023,2]
[312823079,1706299842974,-492.6875681,0.00023,2]
[312823080,1706299842987,-500.0,0.00023,2]
[312823081,1706299842999,-8655.84196968,0.00023,2]
[312823082,1706299843011,-2791.0099997,0.00023,2]
[312823083,1706299843025,-9368.0,0.00023,2]
[312823084,1706299843042,-1173.18926266,0.00023,2]
[312823085,1706299843055,-494.47166886,0.00023,2]
[312823086,1706299843068,-4844.24927146,0.00023,2]
[312823087,1706299843583,-889024.50432343,0.00023,2]
[312823088,1706299843593,-150.0,0.00023294,2]
[312823089,1706299843603,-2018.33,0.0002349,2]
[312823090,1706299843612,-1215.01,0.00023734,2]
[312823091,1706299843621,-210.0,0.00023882,2]
[312823092,1706299843631,-201.45283623,0.00024,2]
[312823093,1706299843640,-155.0,0.00024,2]
[312823094,1706299843651,-171.69,0.00024118,2]
[312823095,1706299843662,-151.74,0.00024126,2]
[312823096,1706299843672,-167.0,0.00024297,2]
[312823097,1706299843682,-167.54,0.00024297,2]
[312823098,1706299843693,-167.62736161,0.000243,2]
[312823099,1706299843704,-2130.11,0.00024384,2]
[312823100,1706299843713,-1253.82,0.00024384,2]
[312823101,1706299843723,-1215.01,0.00024573,2]
[312823102,1706299843732,-155.94,0.00024658,2]
[312823103,1706299843741,-162.02,0.00024658,2]
[312823104,1706299843751,-250.0,0.00024658,2]
[312823105,1706299843760,-150.0,0.00024664,2]
[312823106,1706299843769,-1000.0,0.00024717,2]
[312823107,1706299843778,-167.57211184,0.00025,2]
[312823108,1706299843788,-158.87277204,0.00025,2]
[312823109,1706299843798,-202.25724593,0.00025,2]
[312823110,1706299843808,-1251.18330209,0.00025,2]
[312823111,1706299843817,-934.72068442,0.00025,2]
[312823112,1706299843827,-1585.88267064,0.00025,2]
[312823113,1706299843837,-303.81393503,0.00025,2]
[312823114,1706299843846,-550.0,0.00025,3]
[312823115,1706299843855,-167.0,0.00025099,2]
[312823116,1706299843864,-2018.33,0.00025134,2]
[312823117,1706299843874,-1215.01,0.00025412,2]
[312823118,1706299843884,-2738.85501989,0.00025445,2]
[312823119,1706299843894,-155.94,0.00025685,2]
[312823120,1706299843903,-162.02,0.00025685,2]
[312823121,1706299843914,-151.74,0.00025734,2]
[312823122,1706299843924,-226.18215803,0.00025775,2]
[312823123,1706299843934,-175.53726548,0.00025775,2]
[312823124,1706299843943,-226.18215803,0.00025775,2]
[312823125,1706299843953,-175.53726548,0.00025775,2]
[312823126,1706299843962,-167.0,0.00025901,2]
[312823127,1706299843971,-1215.01,0.00026252,2]
[312823128,1706299843981,-180.0,0.00026271,2]
[312823129,1706299843990,-150.0,0.000263,2]
[312823130,1706299844000,-171.69,0.00026382,2]
[312823131,1706299844009,-1000.0,0.00026575,2]
[312823132,1706299844018,-167.0,0.00026703,2]
[312823133,1706299844028,-155.94,0.00026712,2]
[312823134,1706299844038,-162.02,0.00026712,2]
[312823135,1706299844047,-2018.33,0.00026778,2]
[312823136,1706299844060,-152.72759033,0.00026874,2]
[312823137,1706299844070,-557.68919723,0.00026936,3]
[312823138,1706299844079,-1215.01,0.00027091,2]
[312823139,1706299844088,-151.74,0.00027342,2]
[312823140,1706299844098,-155.0,0.00027397,2]
[312823141,1706299844107,-3000.0,0.00027397,2]
[312823142,1706299844117,-3000.0,0.00027397,2]
[312823143,1706299844126,-3000.0,0.00027397,2]
[312823144,1706299844136,-3000.0,0.00027397,2]
[312823145,1706299844145,-3000.0,0.00027397,2]
[312823146,1706299844155,-3000.0,0.00027397,2]
[312823147,1706299844167,-3000.0,0.00027397,2]
[312823148,1706299844176,-3000.0,0.00027397,2]
[312823149,1706299844184,-3000.0,0.00027397,2]
[312823150,1706299844193,-3000.0,0.00027397,2]
[312823151,1706299844202,-3000.0,0.00027397,2]
[312823152,1706299844212,-3000.0,0.00027397,2]
[312823153,1706299844221,-3000.0,0.00027397,2]
[312823154,1706299844231,-3000.0,0.00027397,2]
[312823155,1706299844241,-3000.0,0.00027397,2]
[312823156,1706299844250,-3000.0,0.00027397,2]
[312823157,1706299844259,-3000.0,0.00027397,2]
[312823158,1706299844268,-3000.0,0.00027397,2]
[312823159,1706299844278,-3000.0,0.00027397,2]
[312823160,1706299844287,-3000.0,0.00027397,2]
[312823161,1706299844296,-35298.12,0.00027397,2]
[312823162,1706299844306,-5775.79,0.00027397,2]
[312823163,1706299844315,-155.33,0.000274,2]
[312823164,1706299844324,-155.33,0.000274,2]
[312823165,1706299844333,-155.33,0.000274,2]
[312823166,1706299844342,-155.33,0.000274,2]
[312823167,1706299844351,-155.33,0.000274,2]
[312823168,1706299844360,-155.33,0.000274,2]
[312823169,1706299844369,-155.33,0.000274,2]
[312823170,1706299844378,-155.33,0.000274,2]
[312823171,1706299844387,-155.33,0.000274,2]
[312823172,1706299844396,-1000.0,0.00027463,2]
[312823173,1706299844405,-167.0,0.00027505,2]
[312823174,1706299844415,-5775.79,0.00027556,2]
[312823175,1706299844424,-10000.0,0.00027671,2]
[312823176,1706299844433,-5775.79,0.00027714,2]
[312823177,1706299844442,-155.94,0.0002774,2]
[312823178,1706299844451,-162.02,0.0002774,2]
[312823179,1706299844460,-5775.79,0.00027872,2]
[312823180,1706299844469,-1215.01,0.00027931,2]
[312823181,1706299844478,-2738.85501989,0.00027991,2]
[312823182,1706299844487,-5775.79,0.0002803,2]
[312823183,1706299844496,-5775.79,0.00028189,2]
[312823184,1706299844505,-167.0,0.00028307,2]
[312823185,1706299844514,-167.54,0.00028307,2]
[312823186,1706299844523,-226.18215803,0.00028346,2]
[312823187,1706299844532,-175.53726548,0.00028346,2]
[312823188,1706299844542,-5775.79,0.00028347,2]
[312823189,1706299844552,-2018.33,0.00028421,2]
[312823190,1706299844561,-200.0,0.000285,2]
[312823191,1706299844571,-155.0,0.000285,2]
[312823192,1706299844580,-5775.79,0.00028505,2]
[312823193,1706299844589,-171.69,0.00028645,2]
[312823194,1706299844598,-5775.79,0.00028664,2]
[312823195,1706299844607,-10000.0,0.00028695,2]
[312823196,1706299844616,-155.0,0.00028767,2]
[312823197,1706299844625,-155.94,0.00028767,2]
[312823198,1706299844634,-162.02,0.00028767,2]
[312823199,1706299844643,-1215.01,0.0002877,2]
[312823200,1706299844652,-5775.79,0.00028822,2]
[312823201,1706299844663,-151.74,0.00028951,2]
[312823202,1706299844673,-160.35028919,0.00029,2]
[312823203,1706299844682,-30879.4459,0.00029696,2]
[312823204,1706299844691,-10000.0,0.00029719,2]
[312823205,1706299844701,-155.94,0.00029795,2]
[312823206,1706299844710,-162.02,0.00029795,2]
[312823207,1706299844720,-175.77811958,0.000298,2]
[312823208,1706299844729,-155.0,0.0003,4]
[312823209,1706299844739,-155.0,0.0003,2]
[312823210,1706299844748,-1809.60794459,0.0003,4]
[312823211,1706299844757,-19026.01005334,0.0003,4]
[312823212,1706299844767,-73066.26381624,0.0003,4]
[312823213,1706299844776,-374.99862499,0.0003,2]
[312823214,1706299844786,-309448.04312828,0.0003,4]
[312823215,1706299844795,-18051.40918937,0.0003,4]
[312823216,1706299844806,-9641.46795832,0.0003,2]
[312823217,1706299844816,-3872.64809544,0.0003,4]
[312823218,1706299844828,-1200.00000012,0.0003,2]
[312823219,1706299844839,-1618.83607194,0.0003,2]
[312823220,1706299844848,-1618.83607194,0.0003,2]
[312823221,1706299844857,-1618.83607194,0.0003,2]
[312823222,1706299844867,-1618.83607194,0.0003,2]
[312823223,1706299844876,-1618.83607194,0.0003,2]
[312823224,1706299844885,-1618.83607194,0.0003,2]
[312823225,1706299844894,-1618.83607194,0.0003,2]
[312823226,1706299844904,-1618.83607194,0.0003,2]
[312823227,1706299844913,-1618.83607194,0.0003,2]
[312823228,1706299844923,-1618.83607194,0.0003,2]
[312823229,1706299844933,-1618.83607194,0.0003,2]
[312823230,1706299844943,-1618.83607194,0.0003,2]
[312823231,1706299844952,-1618.83607194,0.0003,2]
[312823232,1706299844961,-1618.83607194,0.0003,2]
[312823233,1706299844970,-1618.83607194,0.0003,2]
[312823234,1706299844979,-1618.83607194,0.0003,2]
[312823235,1706299844988,-1618.83607194,0.0003,2]
[312823236,1706299844997,-1618.83607194,0.0003,2]
[312823237,1706299845006,-1618.83607194,0.0003,2]
[312823238,1706299845015,-1618.83607194,0.0003,2]
[312823239,1706299845025,-3926.62560897,0.0003,2]
[312823240,1706299845034,-3926.62560897,0.0003,2]
[312823241,1706299845047,-3926.62560897,0.0003,2]
[312823242,1706299845057,-3926.62560897,0.0003,2]
[312823243,1706299845066,-3926.62560897,0.0003,2]
[312823244,1706299845075,-3926.62560897,0.0003,2]
[312823245,1706299845084,-3926.62560897,0.0003,2]
[312823246,1706299845094,-3926.62560897,0.0003,2]
[312823247,1706299845102,-3926.62560897,0.0003,2]
[312823248,1706299845111,-3926.62560897,0.0003,2]
[312823249,1706299845122,-2018.33,0.00030065,2]
[312823250,1706299845132,-1000.0,0.0003021,2]
[312823251,1706299845141,-1000.0,0.00030284,2]
[312823252,1706299845150,-2738.85501989,0.00030536,2]
[312823253,1706299845158,-10000.0,0.00030743,2]
[312823254,1706299845169,-155.94,0.00030822,2]
[312823255,1706299845178,-162.02,0.00030822,2]
[312823257,1706299845187,-152.72759033,0.00030848,2]
[312823259,1706299845197,-214.65,0.00030894,2]
[312823261,1706299845206,-171.69,0.00030909,2]
[312823263,1706299845216,-7119.5678776,0.00031,7]
[312823265,1706299845225,-150.576424,0.00031,2]
[312823267,1706299845234,-557.68919723,0.00031074,5]
[312823269,1706299845243,-4874.15403718,0.0003143,4]
[312823271,1706299845252,-489.98735503,0.000315,4]
[312823273,1706299845261,-180.0,0.00031644,2]
[312823286,1706299845270,-10000.0,0.00031767,2]
[312823288,1706299845383,-155.94,0.00031849,2]
[312823290,1706299845392,-162.02,0.00031849,2]
[312823292,1706299845402,-2890.72842138,0.0003189,2]
[312823293,1706299845410,-2615.59083381,0.00031909,7]
[312823294,1706299845421,-1070.01443201,0.00031909,7]
[312823296,1706299845432,-13100.71734228,0.00032,4]
[312823298,1706299845441,-2211.47072714,0.00032199,4]
[312823300,1706299845450,-166.47403352,0.000324,2]
[312823303,1706299845459,-166.47403352,0.000324,2]
[312823306,1706299845468,-166.47403352,0.000324,2]
[312823308,1706299845477,-166.47403352,0.000324,2]
[312823310,1706299845486,-166.47403352,0.000324,2]
[312823312,1706299845495,-166.47403352,0.000324,2]
[312823314,1706299845504,-166.47403352,0.000324,2]
[312823315,1706299845513,-476.33751124,0.00032674,2]
[312823317,1706299845522,-167679.14471717,0.000328,2]
[312823318,1706299845531,-155.94,0.00032877,2]
[312823319,1706299845540,-591.01,0.00032877,15]
[312823320,1706299845549,-162.02,0.00032877,2]
[312823321,1706299845558,-1000.0,0.00032956,2]
[312823322,1706299845567,-1016.64000001,0.00033,4]
[312823323,1706299845576,-1149.0514066,0.00033,2]
[312823324,1706299845585,-2738.85501989,0.00033082,5]
[312823325,1706299845594,-171.69,0.00033173,2]
[312823326,1706299845604,-155.39075037,0.00033195,4]
[312823327,1706299845613,-463.9958283,0.00033195,4]
[312823328,1706299845622,-155.0,0.00033195,4]
[312823329,1706299845631,-155.49517881,0.00033195,4]
[312823330,1706299845641,-200.0,0.00033195,2]
[312823331,1706299845650,-179.0,0.00033195,2]
[312823332,1706299845659,-4033.23500381,0.00033199,10]
[312823333,1706299845670,-201.66175019,0.00033199,3]
[312823334,1706299845679,-157.48604117,0.000338,4]
[312823335,1706299845688,-507.16322137,0.00034,4]
[312823336,1706299845697,-1000.0,0.00034,4]
[312823337,1706299845707,-16369.71,0.00034649,2]
[312823338,1706299845716,-152.72759033,0.00034821,2]
[312823339,1706299845725,-8975.56984561,0.000349,4]
[312823340,1706299845734,-549.03074208,0.000349,2]
[312823341,1706299845743,-155.0,0.00035,2]
[312823342,1706299845752,-186.13847865,0.00035,4]
[312823343,1706299845761,-155.0,0.00035,2]
[312823344,1706299845771,-6042.96856067,0.00035,2]
[312823345,1706299845780,-557.68919723,0.00035212,7]
[312823346,1706299845789,-1383.59308013,0.000354,2]
[312823347,1706299845798,-183.05582555,0.000354,2]
[312823348,1706299845807,-3548.62138959,0.000354,2]
[312823349,1706299845816,-2116.73403368,0.000354,2]
[312823350,1706299845826,-171.69,0.00035437,2]
[312823351,1706299845835,-2130.11,0.00035616,2]
[312823352,1706299845844,-1253.82,0.00035616,2]
[312823353,1706299845853,-2738.85501989,0.00035627,8]
[312823354,1706299845862,-4916.47418524,0.00035734,2]
[312823355,1706299845871,-165.39,0.000358,7]
[312823356,1706299845880,-3703.2,0.000358,7]
[312823358,1706299845889,-382.40121115,0.00036,4]
[312823360,1706299845899,-591.01,0.00036613,15]
[312823361,1706299845909,-310.4579952,0.00037,4]
[312823363,1706299845919,-158.43,0.000373,3]
[312823364,1706299845928,-1100.96,0.000373,3]
[312823365,1706299845937,-1100.96,0.000373,3]
[312823366,1706299845946,-1100.96,0.000373,3]
[312823367,1706299845955,-1100.96,0.000373,3]
[312823368,1706299845965,-1100.96,0.000373,3]
[312823369,1706299845973,-1100.96,0.000373,3]
[312823370,1706299845982,-1100.96,0.000373,3]
[312823371,1706299845991,-1100.96,0.000373,3]
[312823372,1706299846000,-1100.96,0.000373,3]
[312823373,1706299846009,-1100.96,0.000373,3]
[312823374,1706299846018,-1100.96,0.000373,3]
[312823375,1706299846027,-1100.96,0.000373,3]
[312823376,1706299846037,-1100.96,0.000373,3]
[312823377,1706299846049,-1100.96,0.000373,3]
[312823378,1706299846058,-1100.96,0.000373,3]
[312823379,1706299846067,-1100.96,0.000373,3]
[312823380,1706299846076,-1100.96,0.000373,3]
[312823381,1706299846085,-1100.96,0.000373,3]
[312823382,1706299846093,-1100.96,0.000373,3]
[312823383,1706299846103,-1100.96,0.000373,3]
[312823384,1706299846112,-153.15,0.000373,3]
[312823385,1706299846122,-171.69,0.00037701,2]
[312823386,1706299846131,-1783.74,0.00037897,5]
[312823387,1706299846140,-1797.38,0.00037897,5]
[312823388,1706299846149,-7101.97002612,0.00037897,5]
[312823389,1706299846158,-2578.9249236,0.00037898,4]
[312823390,1706299846168,-226.18215803,0.00037899,2]
[312823391,1706299846177,-175.53726548,0.00037899,2]
[312823392,1706299846186,-601583.117122,0.000379,3]
[312823393,1706299846195,-2738.85501989,0.00038173,11]
[312823394,1706299846204,-150.0,0.00038356,2]
[312823395,1706299846213,-3703.2,0.000387,7]
[312823396,1706299846222,-152.72759033,0.00038795,2]
[312823397,1706299846231,-6055.00893198,0.0003888,2]
[312823398,1706299846240,-6055.00893195,0.0003888,2]
[312823399,1706299846249,-6055.00893195,0.0003888,2]
[312823400,1706299846258,-6055.00893195,0.0003888,2]
[312823401,1706299846267,-6055.00893195,0.0003888,2]
[312823402,1706299846276,-165.39,0.000389,7]
[312823403,1706299846286,-611.64532181,0.00039,2]
[312823404,1706299846295,-352.03967188,0.00039,4]
[312823405,1706299846304,-150.0,0.00039,24]
[312823406,1706299846313,-557.68919723,0.0003935,9]
[312823407,1706299846322,-350.00012537,0.000399,4]
[312823408,1706299846331,-433.91206314,0.000399,2]
[312823409,1706299846339,-171.69,0.00039965,2]
[312823410,1706299846349,-50000.0,0.0004,20]
[312823411,1706299846359,-150.0,0.0004,2]
[312823412,1706299846368,-500.0,0.0004,2]
[312823413,1706299846378,-22031.13914394,0.0004,4]
[312823414,1706299846387,-800.00736387,0.0004,60]
[312823415,1706299846397,-54346.11047477,0.0004,4]
[312823416,1706299846406,-674.9969786,0.00040292,12]
[312823417,1706299846416,-1000.0,0.000403,2]
[312823418,1706299846425,-591.01,0.00040349,15]
[312823419,1706299846435,-6055.00893195,0.00040632,3]
[312823420,1706299846445,-2738.85501989,0.00040718,14]
[312823421,1706299846458,-50000.0,0.00041,21]
[312823422,1706299846472,-2919.81520008,0.00041,4]
[312823423,1706299846485,-3703.2,0.00041,7]
[312823424,1706299846499,-150.79,0.00041,2]
[312823425,1706299846510,-150.79,0.00041,2]
[312823426,1706299846522,-150.79,0.00041,2]
[312823427,1706299846535,-150.79,0.00041,2]
[312823428,1706299846548,-150.79,0.00041,2]
[312823429,1706299846561,-150.79,0.00041,2]
[312823430,1706299846574,-150.79,0.00041,2]
[312823431,1706299846587,-150.79,0.00041,2]
[312823432,1706299846598,-150.79,0.00041,2]
[312823433,1706299846608,-150.79,0.00041,2]
[312823434,1706299846620,-150.79,0.00041,2]
[312823435,1706299846632,-150.79,0.00041,2]